fUSD/lending_fUSD_20250525
["ID","MTS","AMOUNT","RATE_DAILY","PERIOD"]
[362338796,1748205051516,-420.0,0.00019998,2]
[362338797,1748205051527,-503.33,0.00019998,2]
[362338798,1748205051536,-420.0,0.00019998,2]
[362338799,1748205051546,-446.69,0.00019998,2]
[362338800,1748205051557,-420.0,0.00019998,2]
[362338801,1748205051568,-420.0,0.00019998,2]
[362338802,1748205051578,-477.12,0.00019998,2]
[362338803,1748205051589,-153.13,0.00019998,2]
[362338804,1748205051599,-420.0,0.00019998,2]
[362338805,1748205051610,-420.0,0.00019998,2]
[362338806,1748205051619,-420.0,0.00019998,2]
[362338807,1748205051629,-467.41,0.00019998,2]
[362338808,1748205051639,-392.9,0.00019998,2]
[362338809,1748205051649,-439.83383937,0.00019998,2]
[362338810,1748205051659,-420.0,0.00019998,2]
[362338811,1748205051670,-177.64,0.00019998,2]
[362338812,1748205051684,-420.0,0.00019998,2]
[362338813,1748205051693,-420.0,0.00019998,2]
[362338814,1748205051703,-420.0,0.00019998,2]
[362338815,1748205051715,-420.0,0.00019998,2]
[362338816,1748205051724,-420.0,0.00019998,2]
[362338817,1748205051734,-420.0,0.00019998,2]
[362338818,1748205051744,-334.03205,0.00019998,2]
[362338819,1748205051755,-420.0,0.00019998,2]
[362338820,1748205051765,-420.0,0.00019998,2]
[362338821,1748205051775,-151.0,0.00019998,2]
[362338822,1748205051785,-420.0,0.00019998,2]
[362338823,1748205051794,-334.03205,0.00019998,2]
[362338824,1748205051804,-151.0,0.00019998,2]
[362338825,1748205051814,-420.0,0.00019998,2]
[362338826,1748205051823,-260.81,0.00019998,2]
[362338827,1748205051833,-420.0,0.00019998,2]
[362338828,1748205051843,-420.0,0.00019998,2]
[362338829,1748205051853,-420.0,0.00019998,2]
[362338830,1748205051862,-248.62855975,0.00019998,2]
[362338831,1748205051873,-151.0,0.00019998,2]
[362338832,1748205051882,-420.0,0.00019998,2]
[362338833,1748205051891,-441.63860644,0.00019998,2]
[362338834,1748205051901,-206.0914901,0.00019998,2]
[362338835,1748205051910,-426.34284155,0.00019998,2]
[362338836,1748205051919,-420.0,0.00019998,2]
[362338837,1748205051930,-420.0,0.00019998,2]
[362338838,1748205051939,-420.0,0.00019998,2]
[362338839,1748205051949,-420.0,0.00019998,2]
[362338840,1748205051959,-3384.34,0.00019998,2]
[362338841,1748205051968,-420.0,0.00019998,2]
[362338842,1748205051978,-433.4948814,0.00019998,2]
[362338843,1748205051987,-420.0,0.00019998,2]
[362338844,1748205051996,-420.0,0.00019998,2]
[362338845,1748205052005,-420.0,0.00019998,2]
[362338846,1748205052015,-151.0,0.00019998,2]
[362338847,1748205052024,-420.0,0.00019998,2]
[362338848,1748205052033,-420.0,0.00019998,2]
[362338849,1748205052043,-420.0,0.00019998,2]
[362338850,1748205052052,-420.0,0.00019998,2]
[362338851,1748205052061,-420.0,0.00019998,2]
[362338852,1748205052070,-420.0,0.00019998,2]
[362338853,1748205052079,-420.0,0.00019998,2]
[362338854,1748205052088,-420.0,0.00019998,2]
[362338855,1748205052097,-420.0,0.00019998,2]
[362338856,1748205052107,-420.0,0.00019998,2]
[362338857,1748205052116,-296.08888121,0.00019998,2]
[362338858,1748205052125,-420.0,0.00019998,2]
[362338859,1748205052134,-422.87684576,0.00019998,2]
[362338860,1748205052143,-420.0,0.00019998,2]
[362338861,1748205052153,-420.0,0.00019998,2]
[362338862,1748205052162,-420.0,0.00019998,2]
[362338863,1748205052171,-420.0,0.00019998,2]
[362338864,1748205052181,-420.0,0.00019998,2]
[362338865,1748205052190,-420.0,0.00019998,2]
[362338866,1748205052199,-420.0,0.00019998,2]
[362338867,1748205052207,-151.0,0.00019998,2]
[362338868,1748205052217,-420.0,0.00019998,2]
[362338869,1748205052225,-425.29,0.00019998,2]
[362338870,1748205052235,-420.0,0.00019998,2]
[362338871,1748205052244,-514.54117639,0.00019998,2]
[362338872,1748205052253,-420.0,0.00019998,2]
[362338873,1748205052262,-555.97,0.00019998,2]
[362338874,1748205052271,-420.0,0.00019998,2]
[362338875,1748205052280,-420.0,0.00019998,2]
[362338876,1748205052290,-279.581188,0.00019998,2]
[362338877,1748205052299,-420.0,0.00019998,2]
[362338878,1748205052308,-420.0,0.00019998,2]
[362338879,1748205052317,-439.91724349,0.00019998,2]
[362338880,1748205052327,-473.58584994,0.00019998,2]
[362338881,1748205052336,-151.0,0.00019998,2]
[362338882,1748205052345,-420.0,0.00019998,2]
[362338883,1748205052355,-435.85840685,0.00019998,2]
[362338884,1748205052364,-420.0,0.00019998,2]
[362338885,1748205052373,-420.0,0.00019998,2]
[362338886,1748205052382,-151.0,0.00019998,2]
[362338887,1748205052391,-333.92,0.00019998,2]
[362338888,1748205052400,-420.0,0.00019998,2]
[362338889,1748205052409,-420.0,0.00019998,2]
[362338890,1748205052418,-151.0,0.00019998,2]
[362338891,1748205052427,-420.0,0.00019998,2]
[362338892,1748205052436,-420.0,0.00019998,2]
[362338893,1748205052445,-420.0,0.00019998,2]
[362338894,1748205052454,-420.0,0.00019998,2]
[362338895,1748205052463,-151.0,0.00019998,2]
[362338896,1748205052472,-521.93899973,0.00019998,2]
[362338897,1748205052482,-420.0,0.00019998,2]
[362338898,1748205052491,-420.0,0.00019998,2]
[362338899,1748205052500,-281.83,0.00019998,2]
[362338900,1748205052509,-420.0,0.00019998,2]
[362338901,1748205052518,-420.0,0.00019998,2]
[362338902,1748205052528,-420.0,0.00019998,2]
[362338903,1748205052537,-251.19368952,0.00019998,2]
[362338904,1748205052547,-420.0,0.00019998,2]
[362338905,1748205052556,-420.0,0.00019998,2]
[362338906,1748205052566,-441.61180399,0.00019998,2]
[362338907,1748205052616,-151.0,0.00019998,2]
[362338908,1748205052625,-420.0,0.00019998,2]
[362338909,1748205052634,-420.0,0.00019998,2]
[362338910,1748205052643,-420.0,0.00019998,2]
[362338911,1748205052652,-420.0,0.00019998,2]
[362338912,1748205052661,-420.0,0.00019998,2]
[362338913,1748205052671,-420.0,0.00019998,2]
[362338914,1748205052683,-420.0,0.00019998,2]
[362338915,1748205052693,-420.0,0.00019998,2]
[362338916,1748205052703,-425.50699086,0.00019998,2]
[362338917,1748205052712,-406.42490167,0.00019998,2]
[362338918,1748205052723,-420.0,0.00019998,2]
[362338919,1748205052732,-420.0,0.00019998,2]
[362338920,1748205052742,-437.73191088,0.00019998,2]
[362338921,1748205052753,-151.0,0.00019998,2]
[362338922,1748205052763,-420.0,0.00019998,2]
[362338923,1748205052772,-426.36146594,0.00019998,2]
[362338924,1748205052781,-420.0,0.00019998,2]
[362338925,1748205052792,-420.0,0.00019998,2]
[362338926,1748205052802,-420.0,0.00019998,2]
[362338927,1748205052812,-420.0,0.00019998,2]
[362338928,1748205052821,-420.0,0.00019998,2]
[362338929,1748205052830,-420.0,0.00019998,2]
[362338930,1748205052840,-425.72794533,0.00019998,2]
[362338931,1748205052850,-442.54644996,0.00019998,2]
[362338932,1748205052859,-151.0,0.00019998,2]
[362338933,1748205052868,-423.87247554,0.00019998,2]
[362338934,1748205052878,-420.0,0.00019998,2]
[362338935,1748205052887,-435.08444034,0.00019998,2]
[362338936,1748205052897,-420.0,0.00019998,2]
[362338937,1748205052906,-232.267541,0.00019998,2]
[362338938,1748205052915,-278.3855722,0.00019998,2]
[362338939,1748205052925,-434.7546711,0.00019998,2]
[362338940,1748205052935,-420.0,0.00019998,2]
[362338941,1748205052944,-420.0,0.00019998,2]
[362338942,1748205052954,-232.267541,0.00019998,2]
[362338943,1748205052963,-420.0,0.00019998,2]
[362338944,1748205052972,-151.0,0.00019998,2]
[362338945,1748205052982,-420.0,0.00019998,2]
[362338946,1748205052991,-422.88859008,0.00019998,2]
[362338947,1748205053001,-420.0,0.00019998,2]
[362338948,1748205053010,-422.40163949,0.00019998,2]
[362338949,1748205053020,-160.88770352,0.00019998,2]
[362338950,1748205053029,-420.0,0.00019998,2]
[362338951,1748205053038,-151.0,0.00019998,2]
[362338952,1748205053047,-427.24623127,0.00019998,2]
[362338953,1748205053056,-420.0,0.00019998,2]
[362338954,1748205053065,-420.0,0.00019998,2]
[362338955,1748205053075,-420.0,0.00019998,2]
[362338956,1748205053084,-420.0,0.00019998,2]
[362338957,1748205053093,-420.0,0.00019998,2]
[362338958,1748205053103,-272.474719,0.00019998,2]
[362338959,1748205053112,-567.43,0.00019998,2]
[362338960,1748205053122,-525.46,0.00019998,2]
[362338961,1748205053132,-272.474719,0.00019998,2]
[362338962,1748205053141,-420.0,0.00019998,2]
[362338963,1748205053150,-420.0,0.00019998,2]
[362338964,1748205053160,-420.0,0.00019998,2]
[362338965,1748205053169,-420.0,0.00019998,2]
[362338966,1748205053179,-151.0,0.00019998,2]
[362338967,1748205053188,-250.28,0.00019998,2]
[362338968,1748205053197,-420.0,0.00019998,2]
[362338969,1748205053206,-420.0,0.00019998,2]
[362338970,1748205053215,-420.0,0.00019998,2]
[362338971,1748205053224,-420.0,0.00019998,2]
[362338972,1748205053233,-438.74,0.00019998,2]
[362338973,1748205053242,-420.0,0.00019998,2]
[362338974,1748205053251,-420.0,0.00019998,2]
[362338975,1748205053260,-423.25063819,0.00019998,2]
[362338976,1748205053269,-420.0,0.00019998,2]
[362338977,1748205053278,-420.0,0.00019998,2]
[362338978,1748205053287,-464.5,0.00019998,2]
[362338979,1748205053296,-420.0,0.00019998,2]
[362338980,1748205053306,-420.0,0.00019998,2]
[362338981,1748205053315,-420.0,0.00019998,2]
[362338982,1748205053325,-420.0,0.00019998,2]
[362338983,1748205053335,-420.0,0.00019998,2]
[362338984,1748205053345,-420.0,0.00019998,2]
[362338985,1748205053354,-420.0,0.00019998,2]
[362338986,1748205053364,-420.0,0.00019998,2]
[362338987,1748205053373,-420.0,0.00019998,2]
[362338988,1748205053383,-420.0,0.00019998,2]
[362338989,1748205053392,-420.0,0.00019998,2]
[362338990,1748205053402,-501.45,0.00019998,2]
[362338991,1748205053411,-465.83,0.00019998,2]
[362338992,1748205053420,-465.83,0.00019998,2]
[362338993,1748205053431,-420.0,0.00019998,2]
[362338994,1748205053440,-420.0,0.00019998,2]
[362338995,1748205053450,-539.57,0.00019998,2]
[362338996,1748205053459,-151.0,0.00019998,2]
[362338997,1748205053469,-674.911668,0.00019998,2]
[362338998,1748205053478,-420.0,0.00019998,2]
[362338999,1748205053489,-420.0,0.00019998,2]
[362339000,1748205053498,-674.911668,0.00019998,2]
[362339001,1748205053508,-420.0,0.00019998,2]
[362339002,1748205053517,-420.0,0.00019998,2]
[362339003,1748205053526,-471.14223606,0.00019998,2]
[362339004,1748205053536,-420.0,0.00019998,2]
[362339005,1748205053545,-420.0,0.00019998,2]
[362339006,1748205053554,-420.0,0.00019998,2]
[362339007,1748205053563,-420.0,0.00019998,2]
[362339008,1748205053572,-420.0,0.00019998,2]
[362339009,1748205053581,-420.0,0.00019998,2]
[362339010,1748205053591,-420.0,0.00019998,2]
[362339011,1748205053600,-155.98,0.00019998,2]
[362339012,1748205053610,-420.0,0.00019998,2]
[362339013,1748205053619,-420.0,0.00019998,2]
[362339014,1748205053629,-291.75,0.00019998,2]
[362339015,1748205053638,-420.0,0.00019998,2]
[362339016,1748205053647,-151.0,0.00019998,2]
[362339017,1748205053658,-420.0,0.00019998,2]
[362339018,1748205053669,-420.0,0.00019998,2]
[362339019,1748205053684,-420.0,0.00019998,2]
[362339020,1748205053693,-151.0,0.00019998,2]
[362339021,1748205053703,-151.0,0.00019998,2]
[362339022,1748205053714,-244.271658,0.00019998,2]
[362339023,1748205053724,-776.31,0.00019998,2]
[362339024,1748205053734,-776.31,0.00019998,2]
[362339025,1748205053745,-244.271658,0.00019998,2]
[362339026,1748205053756,-420.0,0.00019998,2]
[362339027,1748205053767,-420.0,0.00019998,2]
[362339028,1748205053777,-420.0,0.00019998,2]
[362339029,1748205053787,-420.0,0.00019998,2]
[362339030,1748205053797,-704.33,0.00019998,2]
[362339031,1748205053808,-704.33,0.00019998,2]
[362339032,1748205053817,-151.0,0.00019998,2]
[362339033,1748205053827,-420.0,0.00019998,2]
[362339034,1748205053836,-420.0,0.00019998,2]
[362339035,1748205053846,-421.66674383,0.00019998,2]
[362339036,1748205053856,-420.0,0.00019998,2]
[362339037,1748205053866,-420.0,0.00019998,2]
[362339038,1748205053875,-420.0,0.00019998,2]
[362339039,1748205053885,-420.0,0.00019998,2]
[362339040,1748205053894,-500.0,0.00019998,2]
[362339041,1748205053904,-500.0,0.00019998,2]
[362339042,1748205053914,-151.0,0.00019998,2]
[362339043,1748205053923,-420.0,0.00019998,2]
[362339044,1748205053933,-420.0,0.00019998,2]
[362339045,1748205053942,-236.35,0.00019998,2]
[362339046,1748205053953,-420.0,0.00019998,2]
[362339047,1748205053963,-420.0,0.00019998,2]
[362339048,1748205053976,-157.157083,0.00019998,2]
[362339049,1748205053985,-428.17851849,0.00019998,2]
[362339050,1748205053996,-500.0,0.00019998,2]
[362339051,1748205054005,-500.0,0.00019998,2]
[362339052,1748205054016,-477.74,0.00019998,2]
[362339053,1748205054027,-477.74,0.00019998,2]
[362339054,1748205054038,-420.0,0.00019998,2]
[362339055,1748205054047,-420.0,0.00019998,2]
[362339056,1748205054057,-420.0,0.00019998,2]
[362339057,1748205054067,-420.0,0.00019998,2]
[362339058,1748205054077,-420.0,0.00019998,2]
[362339059,1748205054086,-199.52,0.00019998,2]
[362339060,1748205054100,-420.0,0.00019998,2]
[362339061,1748205054109,-348.74,0.00019998,2]
[362339062,1748205054118,-151.0,0.00019998,2]
[362339063,1748205054127,-420.0,0.00019998,2]
[362339064,1748205054137,-420.0,0.00019998,2]
[362339065,1748205054148,-420.0,0.00019998,2]
[362339066,1748205054158,-239.74,0.00019998,2]
[362339067,1748205054167,-420.0,0.00019998,2]
[362339068,1748205054177,-536.3499874,0.00019998,2]
[362339069,1748205054186,-420.0,0.00019998,2]
[362339070,1748205054196,-420.0,0.00019998,2]
[362339071,1748205054204,-420.0,0.00019998,2]
[362339072,1748205054213,-420.0,0.00019998,2]
[362339073,1748205054222,-210.1,0.00019998,2]
[362339074,1748205054231,-425.93430917,0.00019998,2]
[362339075,1748205054240,-1615.268922,0.00019998,2]
[362339076,1748205054250,-249.44,0.00019998,2]
[362339077,1748205054259,-420.0,0.00019998,2]
[362339078,1748205054269,-420.0,0.00019998,2]
[362339079,1748205054280,-1615.268922,0.00019998,2]
[362339080,1748205054290,-151.0,0.00019998,2]
[362339081,1748205054300,-420.0,0.00019998,2]
[362339082,1748205054309,-161.752574,0.00019998,2]
[362339083,1748205054319,-420.0,0.00019998,2]
[362339084,1748205054328,-320.97483674,0.00019998,2]
[362339085,1748205054339,-420.0,0.00019998,2]
[362339086,1748205054349,-316.92,0.00019998,2]
[362339087,1748205054359,-420.0,0.00019998,2]
[362339088,1748205054369,-420.0,0.00019998,2]
[362339089,1748205054379,-621.79,0.00019998,2]
[362339090,1748205054388,-621.79,0.00019998,2]
[362339091,1748205054397,-420.0,0.00019998,2]
[362339092,1748205054406,-151.0,0.00019998,2]
[362339093,1748205054416,-420.0,0.00019998,2]
[362339094,1748205054425,-420.0,0.00019998,2]
[362339095,1748205054434,-420.0,0.00019998,2]
[362339096,1748205054443,-420.0,0.00019998,2]
[362339097,1748205054453,-420.0,0.00019998,2]
[362339098,1748205054462,-1005.462022,0.00019998,2]
[362339099,1748205054473,-1005.462022,0.00019998,2]
[362339100,1748205054482,-420.0,0.00019998,2]
[362339101,1748205054492,-420.0,0.00019998,2]
[362339102,1748205054502,-420.0,0.00019998,2]
[362339103,1748205054512,-420.0,0.00019998,2]
[362339104,1748205054522,-413.23,0.00019998,2]
[362339105,1748205054532,-420.0,0.00019998,2]
[362339106,1748205054542,-420.0,0.00019998,2]
[362339107,1748205054554,-420.0,0.00019998,2]
[362339108,1748205054565,-420.0,0.00019998,2]
[362339109,1748205054575,-420.0,0.00019998,2]
[362339110,1748205054584,-216.575616,0.00019998,2]
[362339111,1748205054593,-420.0,0.00019998,2]
[362339112,1748205054603,-420.0,0.00019998,2]
[362339113,1748205054613,-420.0,0.00019998,2]
[362339114,1748205054623,-420.0,0.00019998,2]
[362339115,1748205054634,-151.0,0.00019998,2]
[362339116,1748205054643,-420.0,0.00019998,2]
[362339117,1748205054653,-151.0,0.00019998,2]
[362339118,1748205054662,-420.0,0.00019998,2]
[362339119,1748205054675,-420.0,0.00019998,2]
[362339120,1748205054685,-408.10355236,0.00019998,2]
[362339121,1748205054695,-1026.63,0.00019998,2]
[362339122,1748205054704,-1026.63,0.00019998,2]
[362339123,1748205054715,-420.0,0.00019998,2]
[362339124,1748205054730,-304.24,0.00019998,2]
[362339125,1748205054740,-420.0,0.00019998,2]
[362339126,1748205054751,-420.0,0.00019998,2]
[362339127,1748205054761,-420.0,0.00019998,2]
[362339128,1748205054770,-367.9,0.00019998,2]
[362339129,1748205054781,-531.82,0.00019998,2]
[362339130,1748205054790,-420.0,0.00019998,2]
[362339131,1748205054800,-504.13,0.00019998,2]
[362339132,1748205054810,-289.56,0.00019998,2]
[362339133,1748205054820,-420.0,0.00019998,2]
[362339134,1748205054829,-420.0,0.00019998,2]
[362339135,1748205054843,-420.0,0.00019998,2]
[362339136,1748205054855,-420.0,0.00019998,2]
[362339137,1748205054864,-420.0,0.00019998,2]
[362339138,1748205054874,-420.0,0.00019998,2]
[362339139,1748205054884,-151.0,0.00019998,2]
[362339140,1748205054894,-151.0,0.00019998,2]
[362339141,1748205054905,-401.46,0.00019998,2]
[362339142,1748205054915,-420.0,0.00019998,2]
[362339143,1748205054925,-420.0,0.00019998,2]
[362339144,1748205054936,-420.0,0.00019998,2]
[362339145,1748205054946,-420.0,0.00019998,2]
[362339146,1748205054957,-8131.98,0.00019998,2]
[362339147,1748205054966,-8131.98,0.00019998,2]
[362339148,1748205054977,-363.74,0.00019998,2]
[362339149,1748205054988,-200.752088,0.00019998,2]
[362339150,1748205054999,-420.0,0.00019998,2]
[362339151,1748205055010,-327.37435691,0.00019998,2]
[362339152,1748205055021,-200.752088,0.00019998,2]
[362339153,1748205055031,-83888.61437507,0.00019999,2]
[362339154,1748205055040,-439.6087,0.00019999,2]
[362339155,1748205055051,-202.28,0.00019999,2]
[362339156,1748205055060,-420.0,0.00019999,2]
[362339157,1748205055069,-537.3,0.00019999,2]
[362339158,1748205055079,-158.78,0.00019999,2]
[362339159,1748205055088,-274.83,0.00019999,2]
[362339160,1748205055098,-322.95,0.00019999,2]
[362339161,1748205055107,-420.0,0.00019999,2]
[362339162,1748205055117,-264.67,0.00019999,2]
[362339163,1748205055127,-366.64,0.00019999,2]
[362339164,1748205055136,-151.25,0.00019999,2]
[362339165,1748205055146,-420.0,0.00019999,2]
[362339166,1748205055156,-420.0,0.00019999,2]
[362339167,1748205055166,-420.0,0.00019999,2]
[362339168,1748205055175,-560.86,0.00019999,2]
[362339169,1748205055185,-486.00638632,0.00019999,2]
[362339170,1748205055195,-420.0,0.00019999,2]
[362339171,1748205055204,-237.32,0.00019999,2]
[362339172,1748205055214,-325.45,0.00019999,2]
[362339173,1748205055223,-420.0,0.00019999,2]
[362339174,1748205055233,-435.1,0.00019999,2]
[362339175,1748205055243,-420.0,0.00019999,2]
[362339176,1748205055253,-420.0,0.00019999,2]
[362339177,1748205055263,-567.04,0.00019999,2]
[362339178,1748205055273,-185.05,0.00019999,2]
[362339179,1748205055284,-151.15,0.00019999,2]
[362339180,1748205055294,-197.81,0.00019999,2]
[362339181,1748205055303,-420.0,0.00019999,2]
[362339182,1748205055313,-290.7,0.00019999,2]
[362339183,1748205055323,-215.54,0.00019999,2]
[362339184,1748205055333,-250.0,0.00019999,2]
[362339185,1748205055346,-270.95,0.00019999,2]
[362339186,1748205055356,-154.35,0.00019999,2]
[362339187,1748205055365,-190.0,0.00019999,2]
[362339188,1748205055375,-420.0,0.00019999,2]
[362339189,1748205055387,-420.0,0.00019999,2]
[362339190,1748205055399,-242.4,0.00019999,2]
[362339191,1748205055410,-354.68,0.00019999,2]
[362339192,1748205055420,-245.62,0.00019999,2]
[362339193,1748205055431,-176.67,0.00019999,2]
[362339194,1748205055441,-301.43,0.00019999,2]
[362339195,1748205055451,-353.35,0.00019999,2]
[362339196,1748205055460,-521.05,0.00019999,2]
[362339197,1748205055470,-420.0,0.00019999,2]
[362339198,1748205055480,-420.0,0.00019999,2]
[362339199,1748205055490,-274.83,0.00019999,2]
[362339200,1748205055499,-453.09,0.00019999,2]
[362339201,1748205055509,-420.0,0.00019999,2]
[362339202,1748205055519,-420.0,0.00019999,2]
[362339203,1748205055528,-420.0,0.00019999,2]
[362339204,1748205055538,-242.96,0.00019999,2]
[362339205,1748205055548,-420.0,0.00019999,2]
[362339206,1748205055558,-155.15,0.00019999,2]
[362339207,1748205055568,-420.0,0.00019999,2]
[362339208,1748205055578,-420.0,0.00019999,2]
[362339209,1748205055587,-341.6,0.00019999,2]
[362339210,1748205055597,-420.0,0.00019999,2]
[362339211,1748205055608,-420.0,0.00019999,2]
[362339212,1748205055617,-298.8551916,0.00019999,2]
[362339213,1748205055627,-169.0,0.00019999,2]
[362339214,1748205055636,-230.9,0.00019999,2]
[362339215,1748205055645,-521.36,0.00019999,2]
[362339216,1748205055655,-420.0,0.00019999,2]
[362339217,1748205055665,-420.0,0.00019999,2]
[362339218,1748205055678,-420.05,0.00019999,2]
[362339219,1748205055688,-245.19,0.00019999,2]
[362339220,1748205055698,-420.0,0.00019999,2]
[362339221,1748205055707,-324.36,0.00019999,2]
[362339222,1748205055719,-420.0,0.00019999,2]
[362339223,1748205055728,-406.75,0.00019999,2]
[362339224,1748205055737,-310.13,0.00019999,2]
[362339225,1748205055747,-330.81,0.00019999,2]
[362339226,1748205055756,-420.0,0.00019999,2]
[362339227,1748205055766,-168.71293752,0.00019999,2]
[362339228,1748205055776,-400.98,0.00019999,2]
[362339229,1748205055786,-151.815191,0.00019999,2]
[362339230,1748205055796,-420.0,0.00019999,2]
[362339231,1748205055805,-420.0,0.00019999,2]
[362339232,1748205055815,-420.0,0.00019999,2]
[362339233,1748205055824,-420.0,0.00019999,2]
[362339234,1748205055834,-420.0,0.00019999,2]
[362339235,1748205055844,-409.21,0.00019999,2]
[362339236,1748205055854,-420.0,0.00019999,2]
[362339237,1748205055864,-428.41598001,0.00019999,2]
[362339238,1748205055873,-420.0,0.00019999,2]
[362339239,1748205055883,-330.44,0.00019999,2]
[362339240,1748205055892,-420.0,0.00019999,2]
[362339241,1748205055901,-477.84,0.00019999,2]
[362339242,1748205055911,-212.93,0.00019999,2]
[362339243,1748205055921,-155.60201469,0.00019999,2]
[362339244,1748205055930,-197.26,0.00019999,2]
[362339245,1748205055941,-420.0,0.00019999,2]
[362339246,1748205055950,-420.0,0.00019999,2]
[362339247,1748205055960,-151.98,0.00019999,2]
[362339248,1748205055969,-420.0,0.00019999,2]
[362339249,1748205055979,-420.0,0.00019999,2]
[362339250,1748205055988,-420.0,0.00019999,2]
[362339251,1748205055998,-420.0,0.00019999,2]
[362339252,1748205056007,-234.19,0.00019999,2]
[362339253,1748205056017,-245.31246884,0.00019999,2]
[362339254,1748205056026,-420.0,0.00019999,2]
[362339255,1748205056035,-420.24832971,0.00019999,2]
[362339256,1748205056045,-151.0,0.00019999,2]
[362339257,1748205056054,-151.0,0.00019999,2]
[362339258,1748205056064,-420.0,0.00019999,2]
[362339259,1748205056073,-374.35,0.00019999,2]
[362339260,1748205056083,-151.0,0.00019999,2]
[362339261,1748205056092,-151.0,0.00019999,2]
[362339262,1748205056101,-151.0,0.00019999,2]
[362339263,1748205056111,-151.0,0.00019999,2]
[362339264,1748205056120,-211.85621272,0.00019999,2]
[362339265,1748205056130,-158.336968,0.00019999,2]
[362339266,1748205056139,-158.336968,0.00019999,2]
[362339267,1748205056148,-420.0,0.00019999,2]
[362339268,1748205056158,-383.73,0.00019999,2]
[362339269,1748205056168,-420.0,0.00019999,2]
[362339270,1748205056177,-420.0,0.00019999,2]
[362339271,1748205056187,-420.0,0.00019999,2]
[362339272,1748205056197,-485.12242683,0.00019999,2]
[362339273,1748205056207,-420.0,0.00019999,2]
[362339274,1748205056217,-420.0,0.00019999,2]
[362339275,1748205056227,-420.0,0.00019999,2]
[362339276,1748205056236,-258.2,0.00019999,2]
[362339277,1748205056245,-420.0,0.00019999,2]
[362339278,1748205056255,-420.0,0.00019999,2]
[362339279,1748205056265,-258.3,0.00019999,2]
[362339280,1748205056274,-420.0,0.00019999,2]
[362339281,1748205056283,-345.66,0.00019999,2]
[362339282,1748205056293,-420.0,0.00019999,2]
[362339283,1748205056302,-304.6,0.00019999,2]
[362339284,1748205056312,-420.0,0.00019999,2]
[362339285,1748205056322,-159.78,0.00019999,2]
[362339286,1748205056331,-151.0,0.00019999,2]
[362339287,1748205056341,-151.0,0.00019999,2]
[362339288,1748205056350,-241.071038,0.00019999,2]
[362339289,1748205056360,-334.03205,0.00019999,2]
[362339290,1748205056370,-334.03205,0.00019999,2]
[362339291,1748205056379,-420.0,0.00019999,2]
[362339292,1748205056388,-420.0,0.00019999,2]
[362339293,1748205056398,-399.72,0.00019999,2]
[362339294,1748205056407,-151.0,0.00019999,2]
[362339295,1748205056417,-151.0,0.00019999,2]